lending/lending_fUSD_20250121
["ID","MTS","AMOUNT","RATE_DAILY","PERIOD"]
[349908604,1737492645937,-500.0,0.0002082,2]
[349908606,1737492645946,-500.0,0.0002082,2]
[349908607,1737492645959,-500.0,0.0002082,2]
[349908608,1737492645968,-500.0,0.0002082,2]
[349908609,1737492645978,-500.0,0.0002082,2]
[349908610,1737492645987,-500.0,0.0002082,2]
[349908611,1737492645996,-500.0,0.0002082,2]
[349908612,1737492646005,-500.0,0.0002082,2]
[349908613,1737492646014,-500.0,0.0002082,2]
[349908614,1737492646023,-500.0,0.0002082,2]
[349908615,1737492646034,-500.0,0.0002082,2]
[349908616,1737492646046,-500.0,0.0002082,2]
[349908617,1737492646056,-500.0,0.0002082,2]
[349908618,1737492646066,-500.0,0.0002082,2]
[349908619,1737492646075,-500.0,0.0002082,2]
[349908620,1737492646084,-500.0,0.0002082,2]
[349908621,1737492646094,-804.521428,0.0002082,2]
[349908622,1737492646103,-500.0,0.0002082,2]
[349908623,1737492646113,-500.0,0.0002082,2]
[349908624,1737492646123,-500.0,0.0002082,2]
[349908625,1737492646134,-500.0,0.0002082,2]
[349908626,1737492646143,-500.0,0.0002082,2]
[349908627,1737492646152,-500.0,0.0002082,2]
[349908628,1737492646162,-500.0,0.0002082,2]
[349908629,1737492646172,-500.0,0.0002082,2]
[349908630,1737492646181,-287.440176,0.0002082,2]
[349908631,1737492646191,-500.0,0.0002082,2]
[349908632,1737492646201,-500.0,0.0002082,2]
[349908633,1737492646210,-500.0,0.0002082,2]
[349908634,1737492646220,-151.0,0.0002082,2]
[349908635,1737492646230,-500.0,0.0002082,2]
[349908636,1737492646240,-151.0,0.0002082,2]
[349908637,1737492646249,-500.0,0.0002082,2]
[349908638,1737492646259,-151.0,0.0002082,2]
[349908639,1737492646268,-297.21,0.0002082,2]
[349908640,1737492646277,-161.28,0.0002082,2]
[349908641,1737492646287,-276.61216,0.0002082,2]
[349908642,1737492646296,-276.61216,0.0002082,2]
[349908643,1737492646306,-500.0,0.0002082,2]
[349908644,1737492646315,-151.0,0.0002082,2]
[349908645,1737492646324,-500.0,0.0002082,2]
[349908647,1737492646334,-254.317007,0.0002082,2]
[349908649,1737492646343,-254.317007,0.0002082,2]
[349908650,1737492646352,-151.0,0.0002082,2]
[349908652,1737492646362,-500.0,0.0002082,2]
[349908654,1737492646371,-500.0,0.0002082,2]
[349908655,1737492646380,-500.0,0.0002082,2]
[349908656,1737492646389,-500.0,0.0002082,2]
[349908657,1737492646399,-151.0,0.0002082,2]
[349908658,1737492646409,-500.0,0.0002082,2]
[349908659,1737492646418,-500.0,0.0002082,2]
[349908660,1737492646427,-500.0,0.0002082,2]
[349908661,1737492646437,-500.0,0.0002082,2]
[349908663,1737492646447,-500.0,0.0002082,2]
[349908664,1737492646457,-500.0,0.0002082,2]
[349908665,1737492646467,-500.0,0.0002082,2]
[349908666,1737492646476,-350.251926,0.0002082,2]
[349908667,1737492646486,-350.251926,0.0002082,2]
[349908668,1737492646495,-500.0,0.0002082,2]
[349908669,1737492646504,-500.0,0.0002082,2]
[349908670,1737492646514,-500.0,0.0002082,2]
[349908671,1737492646523,-500.0,0.0002082,2]
[349908672,1737492646533,-500.0,0.0002082,2]
[349908673,1737492646543,-151.0,0.0002082,2]
[349908674,1737492646552,-547.77,0.0002082,2]
[349908675,1737492646562,-758.28,0.0002082,2]
[349908676,1737492646571,-151.0,0.0002082,2]
[349908677,1737492646580,-500.0,0.0002082,2]
[349908678,1737492646589,-500.0,0.0002082,2]
[349908679,1737492646599,-1516.15,0.0002082,2]
[349908680,1737492646609,-500.0,0.0002082,2]
[349908681,1737492646618,-500.0,0.0002082,2]
[349908682,1737492646628,-665.83,0.0002082,2]
[349908683,1737492646639,-500.0,0.0002082,2]
[349908684,1737492646648,-578.64,0.0002082,2]
[349908685,1737492646658,-500.0,0.0002082,2]
[349908686,1737492646668,-760.99,0.0002082,2]
[349908687,1737492646677,-500.0,0.0002082,2]
[349908688,1737492646687,-590.49,0.0002082,2]
[349908689,1737492646696,-500.0,0.0002082,2]
[349908690,1737492646706,-689.84,0.0002082,2]
[349908691,1737492646715,-151.0,0.0002082,2]
[349908692,1737492646725,-2428.316702,0.0002082,2]
[349908693,1737492646894,-588.93,0.0002082,2]
[349908694,1737492646905,-151.0,0.0002082,2]
[349908695,1737492646915,-500.0,0.0002082,2]
[349908696,1737492646924,-151.0,0.0002082,2]
[349908697,1737492646934,-151.0,0.0002082,2]
[349908698,1737492646943,-1189.55,0.0002082,2]
[349908699,1737492646952,-1472.15,0.0002082,2]
[349908700,1737492646961,-500.0,0.0002082,2]
[349908701,1737492646971,-850.02,0.0002082,2]
[349908702,1737492646980,-500.0,0.0002082,2]
[349908703,1737492646990,-500.0,0.0002082,2]
[349908704,1737492646999,-157.895692,0.0002082,2]
[349908705,1737492647009,-157.895692,0.0002082,2]
[349908706,1737492647018,-932.81,0.0002082,2]
[349908707,1737492647027,-500.0,0.0002082,2]
[349908708,1737492647037,-1230.47,0.0002082,2]
[349908709,1737492647049,-602.63,0.0002082,2]
[349908710,1737492647059,-553.22,0.0002082,2]
[349908711,1737492647068,-500.0,0.0002082,2]
[349908712,1737492647078,-500.0,0.0002082,2]
[349908713,1737492647089,-500.0,0.0002082,2]
[349908714,1737492647098,-793.57,0.0002082,2]
[349908715,1737492647108,-500.0,0.0002082,2]
[349908716,1737492647119,-500.0,0.0002082,2]
[349908717,1737492647128,-500.0,0.0002082,2]
[349908718,1737492647139,-817.33,0.0002082,2]
[349908719,1737492647148,-614.63798565,0.0002082,2]
[349908720,1737492647158,-2144.23,0.0002082,2]
[349908721,1737492647167,-500.0,0.0002082,2]
[349908722,1737492647177,-474.15,0.0002082,2]
[349908723,1737492647186,-864.24,0.0002082,2]
[349908724,1737492647196,-500.0,0.0002082,2]
[349908725,1737492647205,-500.0,0.0002082,2]
[349908726,1737492647215,-645.12,0.0002082,2]
[349908727,1737492647224,-500.0,0.0002082,2]
[349908728,1737492647234,-500.0,0.0002082,2]
[349908729,1737492647243,-500.0,0.0002082,2]
[349908730,1737492647252,-500.0,0.0002082,2]
[349908731,1737492647262,-500.0,0.0002082,2]
[349908732,1737492647271,-625.15,0.0002082,2]
[349908733,1737492647281,-500.0,0.0002082,2]
[349908734,1737492647290,-846.45,0.0002082,2]
[349908735,1737492647299,-592.87,0.0002082,2]
[349908736,1737492647309,-500.0,0.0002082,2]
[349908737,1737492647318,-500.0,0.0002082,2]
[349908738,1737492647327,-2804.04,0.0002082,2]
[349908739,1737492647337,-500.0,0.0002082,2]
[349908740,1737492647346,-500.0,0.0002082,2]
[349908741,1737492647356,-151.0,0.0002082,2]
[349908742,1737492647365,-717.346009,0.0002082,2]
[349908743,1737492647375,-500.0,0.0002082,2]
[349908744,1737492647384,-717.346009,0.0002082,2]
[349908745,1737492647394,-500.0,0.0002082,2]
[349908746,1737492647404,-342.8307815,0.0002082,2]
[349908747,1737492647413,-266.025284,0.0002082,2]
[349908748,1737492647423,-500.0,0.0002082,2]
[349908749,1737492647432,-500.0,0.0002082,2]
[349908750,1737492647441,-835.69,0.0002082,2]
[349908751,1737492647451,-500.0,0.0002082,2]
[349908752,1737492647460,-639.8,0.0002082,2]
[349908753,1737492647470,-500.0,0.0002082,2]
[349908754,1737492647479,-200.0,0.0002082,2]
[349908755,1737492647488,-158.34,0.00020821,2]
[349908756,1737492647498,-500.0,0.00020821,2]
[349908757,1737492647507,-155.81530406,0.00020821,2]
[349908758,1737492647516,-500.0,0.00020821,2]
[349908759,1737492647525,-500.0,0.00020821,2]
[349908760,1737492647534,-500.0,0.00020821,2]
[349908761,1737492647543,-500.0,0.00020821,2]
[349908762,1737492647552,-500.0,0.00020821,2]
[349908763,1737492647562,-500.0,0.00020821,2]
[349908764,1737492647571,-500.0,0.00020821,2]
[349908765,1737492647580,-500.0,0.00020821,2]
[349908766,1737492647589,-223.41956025,0.00020821,2]
[349908767,1737492647599,-500.0,0.00020821,2]
[349908768,1737492647608,-500.0,0.00020821,2]
[349908769,1737492647617,-500.0,0.00020821,2]
[349908770,1737492647626,-500.0,0.00020821,2]
[349908771,1737492647635,-500.0,0.00020821,2]
[349908772,1737492647644,-500.0,0.00020821,2]
[349908773,1737492647654,-500.0,0.00020821,2]
[349908774,1737492647663,-500.0,0.00020821,2]
[349908775,1737492647672,-500.0,0.00020821,2]
[349908776,1737492647681,-500.0,0.00020821,2]
[349908777,1737492647691,-500.0,0.00020821,2]
[349908778,1737492647700,-500.0,0.00020821,2]
[349908779,1737492647709,-500.0,0.00020821,2]
[349908780,1737492647719,-500.0,0.00020821,2]
[349908781,1737492647728,-500.0,0.00020821,2]
[349908782,1737492647737,-151.0,0.00020821,2]
[349908783,1737492647746,-500.0,0.00020821,2]
[349908784,1737492647756,-500.0,0.00020821,2]
[349908785,1737492647765,-586.938463,0.00020821,2]
[349908786,1737492647775,-500.0,0.00020821,2]
[349908787,1737492647784,-500.0,0.00020821,2]
[349908788,1737492647793,-500.0,0.00020821,2]
[349908789,1737492647803,-322.95653086,0.00020821,2]
[349908790,1737492647812,-180.090104,0.00020821,2]
[349908791,1737492647822,-500.0,0.00020821,2]
[349908792,1737492647831,-180.090104,0.00020821,2]
[349908793,1737492647841,-500.0,0.00020821,2]
[349908794,1737492647850,-500.0,0.00020821,2]
[349908795,1737492647860,-500.0,0.00020821,2]
[349908796,1737492647869,-500.0,0.00020821,2]
[349908797,1737492647879,-500.0,0.00020821,2]
[349908798,1737492647888,-500.0,0.00020821,2]
[349908799,1737492647897,-500.0,0.00020821,2]
[349908800,1737492647906,-500.0,0.00020821,2]
[349908801,1737492647915,-500.0,0.00020821,2]
[349908802,1737492647925,-151.0,0.00020821,2]
[349908803,1737492647935,-500.0,0.00020821,2]
[349908804,1737492647944,-500.0,0.00020821,2]
[349908805,1737492647953,-500.0,0.00020821,2]
[349908806,1737492647962,-500.0,0.00020821,2]
[349908807,1737492647972,-151.0,0.00020821,2]
[349908808,1737492647981,-500.0,0.00020821,2]
[349908809,1737492647990,-151.0,0.00020821,2]
[349908810,1737492647999,-500.0,0.00020821,2]
[349908811,1737492648009,-500.0,0.00020821,2]
[349908812,1737492648018,-151.0,0.00020821,2]
[349908813,1737492648028,-500.0,0.00020821,2]
[349908814,1737492648037,-500.0,0.00020821,2]
[349908815,1737492648049,-611.82,0.00020821,2]
[349908816,1737492648059,-500.0,0.00020821,2]
[349908817,1737492648068,-500.0,0.00020821,2]
[349908818,1737492648079,-500.0,0.00020821,2]
[349908819,1737492648088,-500.0,0.00020821,2]
[349908820,1737492648098,-500.0,0.00020821,2]
[349908821,1737492648107,-500.0,0.00020821,2]
[349908822,1737492648116,-500.0,0.00020821,2]
[349908823,1737492648126,-500.0,0.00020821,2]
[349908824,1737492648136,-595.01175634,0.00020821,2]
[349908825,1737492648145,-500.0,0.00020821,2]
[349908826,1737492648155,-151.0,0.00020821,2]
[349908827,1737492648170,-500.0,0.00020821,2]
[349908828,1737492648179,-500.0,0.00020821,2]
[349908829,1737492648189,-350.251926,0.00020821,2]
[349908830,1737492648199,-350.251926,0.00020821,2]
[349908831,1737492648209,-614.38,0.00020821,2]
[349908832,1737492648218,-500.0,0.00020821,2]
[349908833,1737492648228,-500.0,0.00020821,2]
[349908834,1737492648237,-500.0,0.00020821,2]
[349908835,1737492648246,-500.0,0.00020821,2]
[349908836,1737492648256,-500.0,0.00020821,2]
[349908837,1737492648265,-500.0,0.00020821,2]
[349908838,1737492648275,-639.8,0.00020821,2]
[349908839,1737492648286,-500.0,0.00020821,2]
[349908840,1737492648295,-153.967728,0.00020821,2]
[349908841,1737492648305,-151.0,0.00020821,2]
[349908842,1737492648314,-299.28,0.00020821,2]
[349908843,1737492648323,-157.895692,0.00020821,2]
[349908844,1737492648333,-157.895692,0.00020821,2]
[349908845,1737492648342,-500.0,0.00020821,2]
[349908846,1737492648351,-500.0,0.00020821,2]
[349908847,1737492648360,-500.0,0.00020821,2]
[349908848,1737492648370,-151.0,0.00020821,2]
[349908849,1737492648379,-151.0,0.00020821,2]
[349908850,1737492648388,-151.0,0.00020821,2]
[349908851,1737492648398,-151.0,0.00020821,2]
[349908852,1737492648408,-564.754954,0.00020821,2]
[349908853,1737492648418,-564.754954,0.00020821,2]
[349908854,1737492648427,-200.0,0.00020821,2]
[349908855,1737492648437,-320.48462377,0.00020823,2]
[349908856,1737492648446,-200.0,0.00020844,2]
[349908857,1737492648455,-2153.54098778,0.00020854,2]
[349908858,1737492648465,-320.48462377,0.00020856,2]
[349908859,1737492648474,-533.67947266,0.00020858,2]
[349908860,1737492648484,-322.42025066,0.00020862,2]
[349908861,1737492648493,-533.67947266,0.00020863,2]
[349908862,1737492648503,-151.0,0.0002087,2]
[349908863,1737492648512,-151.0,0.0002087,2]
[349908864,1737492648522,-2428.316702,0.0002087,2]
[349908865,1737492648531,-151.0,0.0002087,2]
[349908866,1737492648541,-151.0,0.0002087,2]
[349908867,1737492648550,-717.346009,0.0002087,2]
[349908868,1737492648561,-717.346009,0.0002087,2]
[349908869,1737492648570,-9283.86837165,0.00020875,2]
[349908870,1737492648580,-482.00009031,0.00020882,2]
[349908871,1737492648590,-482.00009031,0.00020889,2]
[349908872,1737492648599,-200.0,0.0002089,2]
[349908873,1737492648609,-9283.86837165,0.00020894,2]
[349908874,1737492648618,-482.00009031,0.00020896,2]
[349908875,1737492648628,-482.00009031,0.00020898,2]
[349908876,1737492648637,-205.49954183,0.000209,2]
[349908877,1737492648646,-533.67947266,0.00020908,2]
[349908878,1737492648657,-9283.86837165,0.00020931,2]
[349908879,1737492648668,-320.48462377,0.00020938,2]
[349908880,1737492648678,-9283.86837165,0.00020948,2]
[349908881,1737492648688,-320.48462377,0.00020949,2]
[349908882,1737492648698,-247.145878,0.00020976,2]
[349908883,1737492648708,-350.251926,0.00020976,2]
[349908884,1737492648718,-350.251926,0.00020976,2]
[349908885,1737492648727,-151.0,0.00020976,2]
[349908886,1737492648736,-157.895692,0.00020976,2]
[349908887,1737492648746,-157.895692,0.00020976,2]
[349908888,1737492648755,-151.0,0.00020976,2]
[349908889,1737492648765,-151.0,0.00020976,2]
[349908890,1737492648775,-224.854793,0.00020976,2]
[349908891,1737492648784,-151.0,0.00020976,2]
[349908892,1737492648793,-564.754954,0.00020976,2]
[349908893,1737492648803,-564.754954,0.00020976,2]
[349908894,1737492648813,-205.49954183,0.00020977,2]
[349908895,1737492648822,-2153.54098778,0.00020991,2]
[349908896,1737492648832,-500.0,0.00020993,2]
[349908897,1737492648842,-500.0,0.00020993,2]
[349908898,1737492648851,-1048.28,0.00020993,2]
[349908899,1737492648861,-500.0,0.00020993,2]
[349908900,1737492648871,-500.0,0.00020993,2]
[349908901,1737492648881,-500.0,0.00020993,2]
[349908902,1737492648891,-738.49,0.00020993,2]
[349908903,1737492648900,-641.99,0.00020993,2]
[349908904,1737492648913,-616.72,0.00020993,2]
[349908905,1737492648924,-500.0,0.00020993,2]
[349908906,1737492648934,-500.0,0.00020993,2]
[349908907,1737492648944,-872.54,0.00020993,2]
[349908908,1737492648954,-965.81,0.00020993,2]
[349908909,1737492648963,-500.0,0.00020993,2]
[349908910,1737492648973,-500.0,0.00020993,2]
[349908911,1737492648983,-791.91,0.00020993,2]
[349908912,1737492648994,-500.0,0.00020993,2]
[349908913,1737492649003,-943.58,0.00020993,2]
[349908914,1737492649013,-500.0,0.00020993,2]
[349908915,1737492649022,-739.18,0.00020993,2]
[349908916,1737492649032,-573.77,0.00020993,2]
[349908917,1737492649043,-700.0,0.00021,2]
[349908918,1737492649053,-151.0,0.00021011,2]
[349908919,1737492649063,-151.0,0.00021011,2]
[349908920,1737492649073,-151.0,0.00021011,2]
[349908921,1737492649083,-797.807729,0.00021011,2]
[349908922,1737492649092,-797.807729,0.00021011,2]
[349908923,1737492649102,-151.0,0.00021011,2]
[349908924,1737492649111,-151.0,0.00021011,2]
[349908925,1737492649122,-151.0,0.00021011,2]
[349908926,1737492649132,-256.071057,0.00021011,2]
[349908927,1737492649141,-256.071057,0.00021011,2]
[349908928,1737492649150,-150.0,0.00021012,2]
[349908929,1737492649163,-150.0,0.00021013,2]
[349908930,1737492649173,-150.0,0.00021033,2]
[349908931,1737492649183,-150.0,0.00021046,2]
[349908932,1737492649192,-157.69,0.00021047,2]
[349908933,1737492649202,-205.49954183,0.00021054,2]
[349908934,1737492649212,-150.0,0.00021065,2]
[349908935,1737492649222,-322.42025066,0.0002107,2]
[349908936,1737492649231,-500.0,0.00021079,2]
[349908937,1737492649241,-150.0,0.0002108,2]
[349908938,1737492649251,-150.0,0.00021082,2]
[349908939,1737492649260,-150.0,0.00021082,2]
[349908940,1737492649269,-150.0,0.00021086,2]
[349908941,1737492649279,-500.0,0.00021086,2]
[349908942,1737492649288,-151.0,0.00021087,2]
[349908943,1737492649298,-151.0,0.00021089,2]
[349908944,1737492649307,-293.80089593,0.00021093,2]
[349908945,1737492649317,-151.0,0.00021093,2]
[349908946,1737492649326,-500.0,0.00021093,2]
[349908947,1737492649335,-963.47,0.00021093,2]
[349908948,1737492649345,-751.13,0.00021093,2]
[349908949,1737492649355,-1171.75,0.00021093,2]
[349908950,1737492649364,-879.39,0.00021093,2]
[349908951,1737492649374,-2428.316702,0.00021093,2]
[349908952,1737492649384,-500.0,0.00021093,2]
[349908953,1737492649393,-151.0,0.00021093,2]
[349908954,1737492649402,-2428.316702,0.00021093,2]
[349908955,1737492649414,-151.0,0.00021093,2]
[349908956,1737492649424,-665.74,0.00021093,2]
[349908957,1737492649433,-974.79,0.00021093,2]
[349908958,1737492649442,-1923.57,0.00021093,2]
[349908959,1737492649452,-1551.07,0.00021093,2]
[349908960,1737492649461,-500.0,0.00021093,2]
[349908961,1737492649471,-2387.88,0.00021093,2]
[349908962,1737492649480,-500.0,0.00021093,2]
[349908963,1737492649489,-500.0,0.00021093,2]
[349908964,1737492649499,-759.82,0.00021093,2]
[349908965,1737492649509,-151.0,0.00021093,2]
[349908966,1737492649517,-717.346009,0.00021093,2]
[349908967,1737492649527,-717.346009,0.00021093,2]
[349908968,1737492649536,-650.86,0.00021093,2]
[349908969,1737492649546,-500.0,0.00021094,2]
[349908970,1737492649555,-500.0,0.00021094,2]
[349908971,1737492649565,-500.0,0.00021094,2]
[349908972,1737492649573,-612.0,0.00021094,2]
[349908973,1737492649582,-500.0,0.00021094,2]
[349908974,1737492649592,-500.0,0.00021094,2]
[349908975,1737492649601,-500.0,0.00021094,2]
[349908976,1737492649610,-500.0,0.00021094,2]
[349908977,1737492649619,-500.0,0.00021094,2]
[349908978,1737492649628,-500.0,0.00021094,2]
[349908979,1737492649637,-539.13177234,0.00021094,2]
[349908980,1737492649646,-500.0,0.00021094,2]
[349908981,1737492649655,-500.0,0.00021094,2]
[349908982,1737492649665,-500.0,0.00021094,2]
[349908983,1737492649675,-500.0,0.00021094,2]
[349908984,1737492649684,-500.0,0.00021094,2]
[349908985,1737492649694,-500.0,0.00021094,2]
[349908986,1737492649702,-500.0,0.00021094,2]
[349908987,1737492649712,-500.0,0.00021094,2]
[349908988,1737492649721,-500.0,0.00021094,2]
[349908989,1737492649730,-500.0,0.00021094,2]
[349908990,1737492649739,-500.0,0.00021094,2]
[349908991,1737492649749,-500.0,0.00021094,2]
[349908992,1737492649759,-804.521428,0.00021094,2]
[349908993,1737492649768,-500.0,0.00021094,2]
[349908994,1737492649778,-500.0,0.00021094,2]
[349908995,1737492649787,-500.0,0.00021094,2]
[349908996,1737492649796,-500.0,0.00021094,2]
[349908997,1737492649806,-500.0,0.00021094,2]
[349908998,1737492649815,-500.0,0.00021094,2]
[349908999,1737492649824,-500.0,0.00021094,2]
[349909000,1737492649834,-500.0,0.00021094,2]
[349909001,1737492649843,-287.440176,0.00021094,2]
[349909002,1737492649852,-500.0,0.00021094,2]
[349909003,1737492649862,-441.85626029,0.00021094,2]
[349909004,1737492649871,-500.0,0.00021094,2]
[349909005,1737492649880,-500.0,0.00021094,2]
[349909006,1737492649889,-500.0,0.00021094,2]
[349909007,1737492649899,-151.0,0.00021094,2]
[349909008,1737492649908,-276.61216,0.00021094,2]
[349909009,1737492649917,-276.61216,0.00021094,2]
[349909010,1737492649927,-500.0,0.00021094,2]
[349909011,1737492649936,-165.357104,0.00021094,2]
[349909012,1737492649947,-500.0,0.00021094,2]
[349909013,1737492649957,-254.317007,0.00021094,2]
[349909014,1737492649966,-254.317007,0.00021094,2]
[349909015,1737492649976,-151.0,0.00021094,2]
[349909016,1737492649986,-499.41652712,0.00021094,2]
[349909017,1737492649995,-500.0,0.00021094,2]
[349909018,1737492650004,-500.0,0.00021094,2]
[349909019,1737492650013,-500.0,0.00021094,2]
[349909020,1737492650022,-618.14642052,0.00021094,2]
[349909021,1737492650032,-500.0,0.00021094,2]
[349909022,1737492650043,-500.0,0.00021094,2]
[349909023,1737492650054,-500.0,0.00021094,2]
[349909024,1737492650064,-303.01,0.00021094,2]
[349909025,1737492650073,-500.0,0.00021094,2]
[349909026,1737492650083,-350.251926,0.00021094,2]
[349909027,1737492650243,-350.251926,0.00021094,2]
[349909028,1737492650253,-500.0,0.00021094,2]
[349909029,1737492650263,-500.0,0.00021094,2]
[349909030,1737492650272,-500.0,0.00021094,2]
[349909031,1737492650282,-500.0,0.00021094,2]
[349909032,1737492650291,-500.0,0.00021094,2]
[349909033,1737492650300,-547.77,0.00021094,2]
[349909034,1737492650309,-758.28,0.00021094,2]
[349909035,1737492650318,-500.0,0.00021094,2]
[349909036,1737492650327,-500.0,0.00021094,2]
[349909037,1737492650338,-1516.15,0.00021094,2]
[349909038,1737492650347,-548.96,0.00021094,2]
[349909039,1737492650357,-500.0,0.00021094,2]
[349909040,1737492650366,-665.83,0.00021094,2]
[349909041,1737492650376,-578.64,0.00021094,2]
[349909042,1737492650385,-500.0,0.00021094,2]
[349909043,1737492650395,-760.99,0.00021094,2]
[349909044,1737492650404,-500.0,0.00021094,2]
[349909045,1737492650414,-590.49,0.00021094,2]
[349909046,1737492650423,-500.0,0.00021094,2]
[349909047,1737492650433,-689.84,0.00021094,2]
[349909048,1737492650442,-588.93,0.00021094,2]
[349909049,1737492650452,-500.0,0.00021094,2]
[349909050,1737492650461,-169.026359,0.00021094,2]
[349909051,1737492650471,-1189.55,0.00021094,2]
[349909052,1737492650480,-1472.15,0.00021094,2]
[349909053,1737492650489,-500.0,0.00021094,2]
[349909054,1737492650499,-850.02,0.00021094,2]
[349909055,1737492650508,-500.0,0.00021094,2]
[349909056,1737492650518,-500.0,0.00021094,2]
[349909057,1737492650528,-157.895692,0.00021094,2]
[349909058,1737492650537,-157.895692,0.00021094,2]
[349909059,1737492650546,-932.81,0.00021094,2]
[349909060,1737492650555,-500.0,0.00021094,2]
[349909061,1737492650565,-1230.47,0.00021094,2]
[349909062,1737492650575,-602.63,0.00021094,2]
[349909063,1737492650584,-553.22,0.00021094,2]
[349909064,1737492650594,-500.0,0.00021094,2]
[349909065,1737492650604,-500.0,0.00021094,2]
[349909066,1737492650613,-793.57,0.00021094,2]
[349909067,1737492650623,-500.0,0.00021094,2]
[349909068,1737492650632,-500.0,0.00021094,2]
[349909069,1737492650642,-500.0,0.00021094,2]
[349909070,1737492650651,-817.33,0.00021094,2]
[349909071,1737492650663,-2144.23,0.00021094,2]
[349909072,1737492650672,-500.0,0.00021094,2]
[349909073,1737492650681,-864.24,0.00021094,2]
[349909074,1737492650690,-500.0,0.00021094,2]
[349909075,1737492650699,-645.12,0.00021094,2]
[349909076,1737492650709,-500.0,0.00021094,2]
[349909077,1737492650718,-500.0,0.00021094,2]
[349909078,1737492650727,-151.0,0.00021094,2]
[349909079,1737492650737,-151.0,0.00021094,2]
[349909080,1737492650746,-500.0,0.00021094,2]
[349909081,1737492650755,-642.96433216,0.00021094,2]
[349909082,1737492650765,-151.0,0.00021094,2]
[349909083,1737492650775,-625.15,0.00021094,2]
[349909084,1737492650784,-500.0,0.00021094,2]
[349909085,1737492650794,-846.45,0.00021094,2]
[349909086,1737492650803,-592.87,0.00021094,2]
[349909087,1737492650812,-500.0,0.00021094,2]
[349909088,1737492650821,-500.0,0.00021094,2]
[349909089,1737492650830,-564.754954,0.00021094,2]
[349909090,1737492650839,-2804.04,0.00021094,2]
[349909091,1737492650848,-500.0,0.00021094,2]
[349909092,1737492650857,-564.754954,0.00021094,2]
[349909093,1737492650866,-221.48499604,0.00021094,2]
[349909094,1737492650875,-500.0,0.00021094,2]
[349909095,1737492650884,-500.0,0.00021094,2]
[349909096,1737492650893,-500.0,0.00021094,2]
[349909097,1737492650903,-500.0,0.00021094,2]
[349909098,1737492650914,-835.69,0.00021094,2]
[349909099,1737492650924,-500.0,0.00021094,2]
[349909100,1737492650933,-639.8,0.00021094,2]
[349909101,1737492650943,-500.0,0.00021094,2]
[349909102,1737492650952,-609667.45598809,0.00021095,2]
[349909103,1737492650961,-500.0,0.00021095,2]
[349909104,1737492650971,-500.0,0.00021095,2]
[349909105,1737492650980,-500.0,0.00021095,2]
[349909106,1737492650991,-500.0,0.00021095,2]
[349909107,1737492651000,-500.0,0.00021095,2]
[349909108,1737492651009,-500.0,0.00021095,2]
[349909109,1737492651019,-301.70764305,0.00021095,2]